fUSD/lending_fUSD_20260106
["ID","MTS","AMOUNT","RATE_DAILY","PERIOD"]
[400547377,1767710719397,500.0,0.00032876,120]
[400547378,1767710719639,500.0,0.00032876,120]
[400547379,1767710719892,500.0,0.00032876,120]
[400547380,1767710720165,500.0,0.00032876,120]
[400547382,1767710850126,-113.16427752,0.00019973,2]
[400547383,1767710850149,-2074.01882942,0.00020146,2]
[400547384,1767710855127,651.0,0.00032713,120]
[400547386,1767710901541,2390.45175625,0.000328,120]
[400547387,1767710958183,411.15910555,0.00032876,120]
[400547393,1767711031999,-942.78117058,0.00020146,2]
[400547394,1767711032009,-326.0,0.00020146,2]
[400547395,1767711032018,-195.0,0.0002017,2]
[400547396,1767711032029,-300.0,0.00020193,2]
[400547397,1767711032039,-151.0,0.0002024,2]
[400547398,1767711032048,-151.0,0.0002024,2]
[400547399,1767711032058,-194.87815764,0.00021999,2]
[400547400,1767711032069,-471.12184236,0.00021999,2]
[400547401,1767711032079,-902.2810032,0.00022161,2]
[400547402,1767711032088,-250.0,0.00022161,2]
[400547403,1767711032098,-300.0,0.00022161,2]
[400547404,1767711032107,-300.0,0.00022161,2]
[400547405,1767711032117,-195.0,0.00022161,2]
[400547407,1767711032126,-1856.17034429,0.00022249,2]
[400547409,1767711032137,-1160.62965571,0.00022249,2]
[400547411,1767711032149,-262.11286924,0.000225,43]
[400547413,1767711032158,-151.0,0.000226,2]
[400547415,1767711032168,-1352.93345654,0.00023847,2]
[400547417,1767711032177,-151.0,0.00024349,2]
[400547419,1767711032187,-1200.0,0.0002435,2]
[400547421,1767711032196,-300.0,0.0002435,2]
[400547423,1767711032205,-300.0,0.0002435,2]
[400547425,1767711032214,-3016.8,0.00024351,2]
[400547427,1767711032223,-666.0,0.00024799,2]
[400547429,1767711032233,-639.66,0.00025724,2]
[400547431,1767711032245,-999.99,0.00025724,2]
[400547434,1767711032255,-151.0,0.00025724,2]
[400547435,1767711032264,-375.39,0.00025998,2]
[400547438,1767711032274,-3016.8,0.00026454,2]
[400547440,1767711032283,-491.2,0.00027397,6]
[400547442,1767711032292,-336.6,0.00027397,6]
[400547444,1767711032301,-158.77343996,0.00027397,5]
[400547445,1767711032310,-151.0,0.000285,2]
[400547447,1767711032321,-848.7,0.000285,14]
[400547448,1767711032330,-3016.8,0.00028557,2]
[400547450,1767711032340,-151.0,0.0002864,2]
[400547452,1767711032350,-500.0,0.00029877,2]
[400547454,1767711032359,-532.0,0.00029877,2]
[400547456,1767711032369,-151.0,0.0003,7]
[400547458,1767711032378,-165.91170497,0.000305,14]
[400547460,1767711032388,-3016.8,0.0003066,2]
[400547463,1767711032399,-321.95635867,0.00030852,2]
[400547464,1767711032408,-157.0,0.000315,7]
[400547466,1767711032418,-1049.43,0.0003193,5]
[400547468,1767711032427,-151.0,0.000325,14]
[400547470,1767711032436,-2546.1,0.000325,14]
[400547472,1767711032446,-3016.8,0.00032762,3]
[400547474,1767711032455,-500.0,0.00032876,30]
[400547476,1767711032464,-583.37087167,0.00032876,60]
[400547478,1767711032474,-151.0,0.00032876,7]
[400547480,1767711032483,-501.0483089,0.00032877,5]
[400547482,1767711032494,-500.0,0.00032877,30]
[400547484,1767711032504,-1571.6488027,0.00032881,2]
[400547486,1767711032514,-500.0,0.00032904,30]
[400547488,1767711032524,-169.0,0.00033023,120]
[400547491,1767711032534,-281.0,0.00033479,120]
[400547492,1767711032543,-169.0,0.00033534,120]
[400547494,1767711032553,-169.0,0.00033534,120]
[400547496,1767711032562,-500.0,0.00033732,6]
[400547498,1767711032571,-8001.82,0.00033965,2]
[400547500,1767711032582,-200.0,0.00034002,2]
[400547502,1767711032591,-5170.52,0.00034512,2]
[400547504,1767711032600,-169.0,0.00034675,120]
[400547506,1767711032609,-3016.8,0.00034865,4]
[400547508,1767711032619,-200.0,0.00034944,2]
[400547510,1767711032628,-151.0,0.00035,14]
[400547513,1767711032643,-300.04774364,0.00035122,2]
[400547515,1767711032653,-281.0,0.00035153,120]
[400547517,1767711032663,-169.0,0.0003521,120]
[400547519,1767711032674,-169.0,0.0003521,120]
[400547520,1767711032686,-778.271,0.00035589,42]
[400547522,1767711032696,-736.8,0.00035616,15]
[400547524,1767711032705,-486.36474311,0.00035616,56]
[400547526,1767711032715,-504.9,0.00035616,46]
[400547528,1767711032726,-300.0,0.00035616,5]
[400547530,1767711032735,-200.0,0.00035938,2]
[400547533,1767711032746,-200.0,0.00035938,2]
[400547534,1767711032755,-500.0,0.00035938,2]
[400547536,1767711032764,-500.0,0.00035938,2]
[400547538,1767711032774,-365.83535434,0.00035938,2]
[400547541,1767711032783,-500.0,0.00035938,2]
[400547542,1767711032793,-500.0,0.00035938,2]
[400547544,1767711032802,-620.0,0.00035938,2]
[400547547,1767711032812,-500.0,0.00035938,2]
[400547548,1767711032822,-500.0,0.00035938,2]
[400547550,1767711032832,-500.0,0.00035938,2]
[400547552,1767711032842,-500.0,0.00035938,2]
[400547554,1767711032854,-500.0,0.00035938,2]
[400547556,1767711032864,-500.0,0.00035938,2]
[400547559,1767711032874,-500.0,0.00035938,2]
[400547560,1767711032884,-500.0,0.00035938,2]
[400547563,1767711032895,-151.0,0.00035938,2]
[400547565,1767711032905,-500.0,0.00035938,2]
[400547566,1767711032915,-500.0,0.00035938,2]
[400547568,1767711032924,-500.0,0.00035938,2]
[400547570,1767711032935,-151.0,0.00035938,2]
[400547595,1767711033171,-500.0,0.00035938,2]
[400547597,1767711033182,-151.0,0.00035938,2]
[400547599,1767711033191,-500.0,0.00035938,2]
[400547600,1767711033200,-500.0,0.00035938,2]
[400547602,1767711033210,-500.0,0.00035938,2]
[400547605,1767711033220,-151.0,0.00035938,2]
[400547607,1767711033232,-151.0,0.00035938,2]
[400547608,1767711033241,-500.0,0.00035938,2]
[400547610,1767711033250,-151.0,0.00035938,2]
[400547612,1767711033259,-500.0,0.00035938,2]
[400547614,1767711033268,-151.0,0.00035938,2]
[400547616,1767711033278,-500.0,0.00035938,2]
[400547618,1767711033289,-151.0,0.00035938,2]
[400547620,1767711033298,-250.0,0.00035938,2]
[400547622,1767711033308,-200.0,0.00035938,2]
[400547624,1767711033318,-151.0,0.00035938,2]
[400547626,1767711033327,-250.0,0.00035938,2]
[400547628,1767711033337,-157.35456451,0.00035938,2]
[400547630,1767711033346,-151.0,0.00035938,2]
[400547632,1767711033355,-250.0,0.00035938,2]
[400547634,1767711033365,-151.0,0.00035938,2]
[400547636,1767711033374,-250.0,0.00035938,2]
[400547638,1767711033384,-250.0,0.00035938,2]
[400547640,1767711033395,-250.0,0.00035938,2]
[400547642,1767711033404,-250.0,0.00035938,2]
[400547644,1767711033413,-275.30162004,0.00035938,2]
[400547646,1767711033423,-250.0,0.00035938,2]
[400547648,1767711033432,-235.2,0.00035938,14]
[400547650,1767711033442,-1404.0,0.00035959,2]
[400547652,1767711033451,-4815.0,0.00035959,2]
[400547654,1767711033460,-565.0,0.00035959,2]
[400547656,1767711033469,-3113.96,0.00036,120]
[400547658,1767711033481,-532.0,0.00036142,9]
[400547660,1767711033491,-352.24,0.00036164,2]
[400547662,1767711033501,-235.2,0.00036212,14]
[400547664,1767711033511,-600.0,0.00036438,5]
[400547666,1767711033520,-235.2213644,0.00036485,14]
[400547668,1767711033529,-200.0,0.00036486,2]
[400547669,1767711033539,-281.0,0.0003691,120]
[400547670,1767711033548,-3016.8,0.00036968,5]
[400547671,1767711033565,-169.0,0.00036971,120]
[400547672,1767711033577,-169.0,0.00036971,120]
[400547673,1767711033587,-900.0,0.0003726,5]
[400547674,1767711033598,-642.94,0.00037307,2]
[400547675,1767711033609,-352.24,0.00037521,2]
[400547676,1767711033619,-24156.24,0.00037561,2]
[400547677,1767711033629,-500.0,0.00037588,10]
[400547678,1767711033641,-1200.0,0.00038082,5]
[400547679,1767711033651,-1000.0,0.00038356,5]
[400547680,1767711033661,-666.72878,0.00038676,2]
[400547681,1767711033671,-281.0,0.00038756,120]
[400547682,1767711033685,-992.86947112,0.00038767,5]
[400547683,1767711033695,-683.57,0.00038809,2]
[400547685,1767711033704,-169.0,0.00038819,120]
[400547687,1767711033715,-169.0,0.00038819,120]
[400547689,1767711033727,-352.24,0.00038877,2]
[400547690,1767711033737,-836.80882857,0.00038898,15]
[400547692,1767711033747,-1500.0,0.00038904,5]
[400547693,1767711033757,-2000.1,0.00039,30]
[400547694,1767711033767,-4849.33,0.00039,120]
[400547695,1767711033777,-3016.8,0.00039071,6]
[400547696,1767711033787,-1611.65362228,0.00039095,2]
[400547697,1767711033796,-1611.65362228,0.00039095,2]
[400547698,1767711033806,-1306.08924953,0.00039726,5]
[400547699,1767711033815,-2500.0,0.00039799,2]
[400547700,1767711033824,-1133.39,0.00039799,120]
[400547701,1767711033833,-2514.8,0.00039799,120]
[400547702,1767711033843,-594.2,0.00039799,120]
[400547703,1767711033852,-1000.0,0.00039799,120]
[400547704,1767711033861,-238.89324852,0.00039899,120]
[400547705,1767711033870,-1133.39,0.00039899,120]
[400547706,1767711033879,-1133.39,0.00039899,120]
[400547707,1767711033888,-1133.39,0.00039899,120]
[400547708,1767711033899,-1133.39,0.00039899,120]
[400547709,1767711033908,-1133.39,0.00039899,120]
[400547710,1767711033917,-1133.47,0.00039899,120]
[400547711,1767711033926,-2514.8,0.00039899,120]
[400547712,1767711033936,-2514.8,0.00039899,120]
[400547713,1767711033946,-2514.8,0.00039899,120]
[400547714,1767711033959,-2514.8,0.00039899,120]
[400547715,1767711033969,-2514.8,0.00039899,120]
[400547716,1767711033979,-2514.8,0.00039899,120]
[400547717,1767711033990,-594.2,0.00039899,120]
[400547718,1767711034000,-594.2,0.00039899,120]
[400547719,1767711034011,-594.2,0.00039899,120]
[400547720,1767711034022,-594.2,0.00039899,120]
[400547721,1767711034032,-594.2,0.00039899,120]
[400547722,1767711034043,-594.36338491,0.00039899,120]
[400547723,1767711034053,-1000.0,0.00039899,120]
[400547724,1767711034063,-1000.0,0.00039899,120]
[400547725,1767711034073,-803.09804726,0.00039899,120]
[400547726,1767711034083,-1000.0,0.000399,120]
[400547727,1767711034094,-1353.9,0.00039964,6]
[400547728,1767711034104,-250.0,0.0004,45]
[400547729,1767711034114,-803.48032264,0.0004,3]
[400547730,1767711034123,-151.0,0.0004,120]
[400547731,1767711034133,-199.49149987,0.0004,2]
[400547732,1767711034146,-153.0,0.0004,120]
[400547733,1767711034156,-691.39774486,0.00040045,2]
[400547734,1767711034166,-352.24,0.00040233,2]
[400547735,1767711034176,-250.0,0.000405,45]
[400547736,1767711034186,-500.0,0.00040547,40]
[400547737,1767711034195,-500.0,0.00040547,40]
[400547738,1767711034205,-500.0,0.00040547,40]
[400547739,1767711034214,-500.0,0.00040547,40]
[400547740,1767711034224,-500.0,0.00040547,40]
[400547741,1767711034233,-500.0,0.00040547,40]
[400547742,1767711034243,-500.0,0.00040547,40]
[400547743,1767711034253,-500.0,0.00040547,40]
[400547744,1767711034263,-500.0,0.00040547,40]
[400547745,1767711034272,-500.0,0.00040547,40]
[400547746,1767711034282,-500.0,0.00040547,40]
[400547747,1767711034292,-500.0,0.00040547,40]
[400547748,1767711034302,-500.0,0.00040547,40]
[400547749,1767711034312,-500.0,0.00040547,40]
[400547750,1767711034321,-500.0,0.00040547,40]
[400547751,1767711034331,-155.72,0.00040636,120]
[400547752,1767711034341,-155.73,0.00040685,120]
[400547753,1767711034351,-6156.0,0.000407,117]
[400547754,1767711034365,-153.0,0.000407,120]
[400547755,1767711034375,-444.0,0.00040736,5]
[400547756,1767711034384,-155.72,0.00040736,120]
[400547757,1767711034396,-1353.9,0.00040755,6]
[400547758,1767711034406,-461.91,0.00040769,120]
[400547759,1767711034417,-155.73,0.00040785,120]
[400547760,1767711034427,-151.0,0.000408,120]
[400547761,1767711034436,-155.72,0.00040836,120]
[400547762,1767711034446,-155.73,0.00040885,120]
[400547763,1767711034455,-386.7752798,0.00040894,15]
[400547764,1767711034465,-155.76,0.00040936,120]
[400547765,1767711034475,-577.24411627,0.00040983,120]
[400547766,1767711034485,-575.69,0.00040984,120]
[400547767,1767711034495,-599.25197776,0.00040984,120]
[400547768,1767711034504,-593.90628088,0.00040984,120]
[400547769,1767711034514,-607.67987355,0.00040984,120]
[400547770,1767711034523,-500.0,0.00040984,120]
[400547771,1767711034533,-575.89334175,0.00040984,120]
[400547772,1767711034543,-626.84519858,0.00040984,120]
[400547773,1767711034552,-583.5074049,0.00040984,120]
[400547774,1767711034561,-636.46742838,0.00040984,120]
[400547775,1767711034572,-594.05514147,0.00040984,120]
[400547776,1767711034581,-1256.84,0.00040984,120]
[400547777,1767711034591,-582.67804608,0.00040984,120]
[400547778,1767711034600,-575.70226134,0.00040984,120]
[400547779,1767711034610,-634.18,0.00040984,120]
[400547780,1767711034620,-570.53980287,0.00040984,120]
[400547781,1767711034629,-580.29480169,0.00040984,120]
[400547782,1767711034639,-603.30898229,0.00040984,120]
[400547783,1767711034650,-645.88931376,0.00040984,30]
[400547784,1767711034660,-590.00307234,0.00040984,30]
[400547785,1767711034670,-579.91534644,0.00040984,120]
[400547786,1767711034681,-500.0,0.00040984,120]
[400547787,1767711034691,-597.01885747,0.00040984,120]
[400547788,1767711034700,-500.0,0.00040984,120]
[400547789,1767711034710,-500.0,0.00040984,120]
[400547790,1767711034721,-500.0,0.00040984,120]
[400547791,1767711034730,-1000.0,0.00040984,120]
[400547792,1767711034743,-500.0,0.00040984,120]
[400547793,1767711034755,-500.0,0.00040984,120]
[400547794,1767711034764,-596.48251967,0.00040984,120]
[400547795,1767711034773,-500.0,0.00040984,120]
[400547796,1767711034783,-591.63465049,0.00040984,120]
[400547797,1767711034792,-500.0,0.00040984,120]
[400547798,1767711034801,-623.31843095,0.00040984,120]
[400547799,1767711034811,-526.1671929,0.00040984,120]
[400547800,1767711034820,-575.52355975,0.00040984,120]
[400547801,1767711034829,-500.0,0.00040984,120]
[400547802,1767711034839,-573.01028765,0.00040984,120]
[400547803,1767711034849,-599.21451186,0.00040984,120]
[400547804,1767711034859,-500.0,0.00040984,120]
[400547805,1767711034869,-500.0,0.00040984,120]
[400547806,1767711034878,-567.61088151,0.00040984,120]
[400547807,1767711034888,-517.31843169,0.00040984,120]
[400547808,1767711034900,-576.06011499,0.00040984,120]
[400547809,1767711034910,-500.0,0.00040984,120]
[400547810,1767711034919,-647.50069886,0.00040984,120]
[400547811,1767711034929,-800.0,0.00040984,120]
[400547812,1767711034939,-500.0,0.00040984,120]
[400547813,1767711034948,-500.0,0.00040984,120]
[400547814,1767711034958,-500.0,0.00040984,120]
[400547815,1767711034967,-500.0,0.00040984,120]
[400547816,1767711034977,-500.0,0.00040984,120]
[400547817,1767711034986,-500.0,0.00040984,120]
[400547818,1767711034996,-552.74044285,0.00040984,120]
[400547819,1767711035006,-500.0,0.00040984,120]
[400547820,1767711035015,-500.0,0.00040984,120]
[400547821,1767711035025,-500.0,0.00040984,120]
[400547822,1767711035034,-1070.65,0.00040984,120]
[400547823,1767711035044,-511.98745299,0.00040984,120]
[400547824,1767711035053,-500.0,0.00040984,120]
[400547825,1767711035063,-500.0,0.00040984,120]
[400547826,1767711035072,-500.0,0.00040984,120]
[400547827,1767711035081,-500.0,0.00040984,120]
[400547828,1767711035091,-500.0,0.00040984,120]
[400547829,1767711035100,-500.0,0.00040984,120]
[400547830,1767711035109,-500.0,0.00040984,120]
[400547831,1767711035121,-500.0,0.00040984,120]
[400547832,1767711035134,-594.3116379,0.00040984,120]
[400547833,1767711035145,-283.55858104,0.00040984,60]
[400547834,1767711035163,-347.05303681,0.00040984,60]
[400547835,1767711035172,-500.0,0.00040984,120]
[400547836,1767711035182,-500.0,0.00040984,120]
[400547837,1767711035192,-500.0,0.00040984,120]
[400547838,1767711035201,-500.0,0.00040984,120]
[400547839,1767711035210,-500.0,0.00040984,120]
[400547840,1767711035220,-500.0,0.00040984,120]
[400547841,1767711035230,-500.0,0.00040984,120]
[400547842,1767711035239,-508.95471461,0.00040984,120]
[400547843,1767711035249,-500.0,0.00040984,120]
[400547844,1767711035259,-500.0,0.00040984,120]
[400547845,1767711035268,-500.0,0.00040984,120]
[400547846,1767711035279,-500.0,0.00040984,120]
[400547847,1767711035288,-507.32555357,0.00040984,120]
[400547848,1767711035298,-526.66022685,0.00040984,120]
[400547849,1767711035307,-500.0,0.00040984,120]
[400547850,1767711035317,-500.0,0.00040984,120]
[400547851,1767711035326,-500.0,0.00040984,120]
[400547852,1767711035335,-500.0,0.00040984,120]
[400547853,1767711035344,-356.47274265,0.00040984,120]
[400547854,1767711035356,-143.52725735,0.00040984,120]
[400547855,1767711035366,-580.36759726,0.00040984,120]
[400547856,1767711035375,-459.67136548,0.00040984,120]
[400547857,1767711035387,-40.32863452,0.00040984,120]
[400547858,1767711035398,-500.0,0.00040984,120]
[400547859,1767711035408,-500.0,0.00040984,120]
[400547860,1767711035418,-516.78660842,0.00040984,120]
[400547861,1767711035428,-500.0,0.00040984,120]
[400547862,1767711035437,-552.44463546,0.00040984,120]
[400547863,1767711035452,-500.0,0.00035937,15]
[400547864,1767711035462,-29.71536454,0.00040984,120]
[400547865,1767711035471,-246.60904191,0.00040984,120]
[400547866,1767711035482,-253.39095809,0.00040984,120]
[400547867,1767711035491,-291.95920089,0.00040984,120]
[400547869,1767711037984,-500.0,0.0003347,3]
[400547870,1767711037995,-83.35345893,0.00035937,15]
[400547871,1767711038047,-416.64654107,0.00035937,15]
[400547872,1767711038057,-500.0,0.00035937,15]
[400547873,1767711038068,-500.0,0.00035937,15]
[400547874,1767711038079,-500.0,0.00035937,15]
[400547875,1767711038089,-500.0,0.00035937,15]
[400547876,1767711038100,-500.0,0.00035937,15]
[400547877,1767711038110,-280.07716348,0.00035937,15]
[400547878,1767711038121,-500.0,0.00035937,15]
[400547879,1767711038132,-500.0,0.00035937,15]
[400547880,1767711038143,-500.0,0.00035937,15]
[400547881,1767711038155,-500.0,0.00035937,15]
[400547882,1767711038166,-500.0,0.00035937,15]
[400547883,1767711038176,-500.0,0.00035937,15]
[400547884,1767711038188,-219.75356713,0.00040984,120]
[400547885,1767711038198,-500.0,0.00040984,120]
[400547886,1767711038208,-532.26680834,0.00040984,120]
[400547887,1767711038218,-500.0,0.00040984,120]
[400547888,1767711038229,-500.0,0.00040984,120]
[400547889,1767711038239,-500.0,0.00040984,120]
[400547890,1767711038249,-500.0,0.00040984,120]
[400547891,1767711038258,-500.0,0.00040984,120]
[400547892,1767711038268,-547.65910964,0.00040984,120]
[400547893,1767711038279,-534.61526833,0.00040984,120]
[400547894,1767711038289,-500.0,0.00040984,120]
[400547895,1767711038298,-500.0,0.00040984,120]
[400547897,1767711038308,-500.0,0.00040984,120]
[400547899,1767711038318,-500.0,0.00040984,120]
[400547901,1767711038327,-500.0,0.00040984,120]
[400547903,1767711038337,-500.0,0.00040984,120]
[400547905,1767711038347,-500.0,0.00040984,120]
[400547907,1767711038357,-500.0,0.00040984,120]
[400547909,1767711038367,-500.0,0.00040984,120]
[400547911,1767711038378,-500.0,0.00040984,120]
[400547913,1767711038387,-500.0,0.00040984,120]
[400547915,1767711038401,-500.0,0.00040984,120]
[400547917,1767711038411,-500.0,0.00040984,120]
[400547919,1767711038422,-500.0,0.00040984,120]
[400547922,1767711038432,-730.0,0.00040984,120]
[400547924,1767711038442,-558.26360093,0.00040984,120]
[400547926,1767711038451,-500.0,0.00040984,120]
[400547929,1767711038461,-517.27895138,0.00040984,120]
[400547932,1767711038471,-500.0,0.00040984,120]
[400547935,1767711038480,-500.0,0.00040984,120]
[400547937,1767711038490,-500.0,0.00040984,120]
[400547939,1767711038500,-500.0,0.00040984,120]
[400547941,1767711038509,-500.0,0.00040984,120]
[400547943,1767711038519,-500.0,0.00040984,120]
[400547945,1767711038528,-613.38977678,0.00040984,60]
[400547947,1767711038542,-19.85790096,0.00040984,60]
[400547949,1767711038552,-531.90694339,0.00040984,120]
[400547951,1767711038561,-500.0,0.00040984,120]
[400547954,1767711038571,-500.0,0.00040984,120]
[400547956,1767711038581,-500.0,0.00040984,120]
[400547958,1767711038591,-500.0,0.00040984,120]
[400547959,1767711038600,-558.36979578,0.00040984,120]
[400547961,1767711038609,-500.0,0.00040984,120]
[400547963,1767711038620,-545.13909695,0.00040984,120]
[400547965,1767711038630,-100.37625953,0.00040984,120]
[400547968,1767711038642,-399.62374047,0.00040984,120]
[400547970,1767711038652,-500.0,0.00040984,120]
[400547972,1767711038662,-500.0,0.00040984,120]
[400547973,1767711038671,-500.0,0.00040984,120]
[400547976,1767711038683,-500.0,0.00040984,120]
[400547977,1767711038693,-500.0,0.00040984,120]
[400547980,1767711038702,-500.0,0.00040984,120]
[400547981,1767711038712,-500.0,0.00040984,120]
[400547983,1767711038722,-500.0,0.00040984,120]
[400547986,1767711038732,-535.36234191,0.00040984,120]
[400547987,1767711038742,-500.0,0.00040984,120]
[400547990,1767711038752,-522.43092222,0.00040984,120]
[400547991,1767711038762,-500.0,0.00040984,120]
[400547993,1767711038772,-500.0,0.00040984,120]
[400547996,1767711038781,-536.98113184,0.00040984,120]
[400547998,1767711038791,-529.77433204,0.00040984,120]
[400547999,1767711038802,-1016.86,0.00040984,30]
[400548002,1767711038811,-155.73,0.00040985,120]
[400548004,1767711038820,-500.0,0.00040986,60]
[400548006,1767711038830,-563.09988265,0.00040993,120]
[400548007,1767711038839,-646.21787601,0.00040993,120]
[400548010,1767711038849,-500.0,0.00040993,60]
[400548011,1767711038859,-581.0949089,0.00040993,120]
[400548013,1767711038868,-500.0,0.00040993,120]
[400548015,1767711038878,-1256.84,0.00040993,120]
[400548017,1767711038888,-634.18,0.00040993,120]
[400548019,1767711038900,-581.89122414,0.00040993,120]
[400548022,1767711038910,-500.0,0.00040993,120]
[400548024,1767711038920,-500.0,0.00040993,120]
[400548026,1767711038930,-500.0,0.00040993,120]
[400548028,1767711038940,-1055.38569926,0.00040993,120]
[400548030,1767711038950,-500.0,0.00040993,120]
[400548031,1767711038960,-500.0,0.00040993,120]
[400548034,1767711038970,-533.45305811,0.00040993,120]
[400548036,1767711038979,-500.0,0.00040993,120]
[400548038,1767711038991,-500.0,0.00040993,120]
[400548040,1767711039005,-500.0,0.00040993,120]
[400548042,1767711039015,-500.0,0.00040993,120]
[400548044,1767711039024,-800.0,0.00040993,120]
[400548046,1767711039035,-500.0,0.00040993,120]
[400548048,1767711039046,-500.0,0.00040993,120]
[400548050,1767711039055,-500.0,0.00040993,120]
[400548052,1767711039065,-500.0,0.00040993,120]
[400548054,1767711039075,-500.0,0.00040993,120]
[400548056,1767711039084,-1070.65,0.00040993,120]
[400548058,1767711039094,-500.0,0.00040993,120]
[400548060,1767711039104,-500.0,0.00040993,120]
[400548062,1767711039113,-500.0,0.00040993,120]
[400548064,1767711039122,-500.0,0.00040993,120]
[400548066,1767711039132,-500.0,0.00040993,120]
[400548068,1767711039142,-3561.68,0.00040993,120]
[400548070,1767711039153,-500.0,0.00040993,120]
[400548072,1767711039162,-534.81317839,0.00040993,120]
[400548074,1767711039171,-500.0,0.00040993,120]
[400548076,1767711039181,-500.0,0.00040993,120]
[400548078,1767711039191,-500.0,0.00040993,120]
[400548080,1767711039200,-500.0,0.00040993,120]
[400548082,1767711039209,-500.0,0.00040993,120]
[400548084,1767711039219,-500.0,0.00040993,120]
[400548086,1767711039228,-500.0,0.00040993,120]
[400548088,1767711039238,-500.0,0.00040993,120]
[400548090,1767711039247,-500.0,0.00040993,120]
[400548092,1767711039256,-500.0,0.00040993,120]
[400548094,1767711039266,-500.0,0.00040993,120]
[400548096,1767711039275,-500.0,0.00040993,120]
[400548098,1767711039284,-500.0,0.00040993,120]
[400548100,1767711039293,-500.0,0.00040993,120]
[400548102,1767711039303,-500.0,0.00040993,120]
[400548104,1767711039312,-500.0,0.00040993,120]
[400548106,1767711039321,-500.0,0.00040993,120]
[400548108,1767711039330,-500.0,0.00040993,120]
[400548110,1767711039339,-500.0,0.00040993,120]
[400548112,1767711039349,-582.16,0.00040993,120]
[400548114,1767711039358,-500.0,0.00040993,120]
[400548116,1767711039367,-500.0,0.00040993,120]
[400548118,1767711039377,-500.0,0.00040993,120]
[400548120,1767711039386,-500.0,0.00040993,120]
[400548122,1767711039398,-500.0,0.00040993,120]
[400548125,1767711039407,-500.0,0.00040993,120]
[400548145,1767711039599,-500.0,0.00040993,120]
[400548147,1767711039610,-500.0,0.00040993,120]
[400548149,1767711039620,-331.60185609,0.00040993,120]
[400548152,1767711039633,-240.97196732,0.00040993,120]
[400548154,1767711039642,-500.0,0.00040993,120]
[400548156,1767711039654,-500.0,0.00040993,120]
[400548158,1767711039663,-500.0,0.00040993,120]
[400548160,1767711039673,-500.0,0.00040993,120]
[400548162,1767711039686,-23.45905007,0.00040993,120]
[400548189,1767711039933,-550.02137847,0.00040993,120]
[400548191,1767711039943,-500.0,0.00040993,120]
[400548192,1767711039952,-155.87206275,0.00040993,120]
[400548193,1767711039962,-500.0,0.00040993,120]
[400548194,1767711039971,-500.0,0.00040993,120]
[400548195,1767711039980,-500.0,0.00040993,120]
[400548196,1767711039989,-500.0,0.00040993,120]
[400548197,1767711039999,-500.0,0.00040993,120]
[400548198,1767711040009,-500.0,0.00040993,120]
[400548199,1767711040018,-500.0,0.00040993,120]
[400548200,1767711040027,-730.0,0.00040993,120]
[400548201,1767711040038,-576.49253157,0.00040993,60]
[400548202,1767711040048,-500.0,0.00040993,120]
[400548203,1767711040058,-500.0,0.00040993,120]